{"text_format":"3","workbook":"xlsx","n_sheets":2,"sheets":["POČETAK","OSOBNI MJESEČNI PRORAČUN"],"read":"whole","date_system":"1900"}

{"sheet":"POČETAK","index":0,"n_rows":7,"n_cols":2,"rows_kept":7}
[null,"O OVOM PREDLOŠKU"]
[null,"Upotrijebite ovaj radni list za osobni mjesečni proračun kako biste pratili predviđene i stvarne mjesečne prihode i predviđene i stvarne troškove."]
[null,"Izdatke različitih kategorija unesite u odgovarajuće tablice."]
[null,"Predviđeni saldo, stvarni saldo i razlika automatski se izračunavaju."]
[null,"Napomena: "]
[null,"dodatne su upute navedene u stupcu A na radnom listu OSOBNI MJESEČNI PRORAČUN. Ovaj je tekst namjerno skriven. Da biste uklonili tekst, odaberite stupac A, a zatim odaberite IZBRIŠI. Da biste otkrili tekst, odaberite stupac A, a zatim promijenite boju fonta."]
[null,"Da biste saznali više o tablicama na radnom listu, pritisnite SHIFT i zatim F10 na tablici pa odaberite mogućnost TABLICA i potom ZAMJENSKI TEKST."]

{"sheet":"OSOBNI MJESEČNI PRORAČUN","index":1,"n_rows":64,"n_cols":10,"rows_kept":64,"merged":[[3,1,5,1],[3,2,3,3],[3,6,4,8],[3,9,4,9],[4,2,4,3],[5,2,5,3],[5,6,6,8],[5,9,6,9],[7,1,9,1],[7,2,7,3],[7,6,8,8],[7,9,8,9],[8,2,8,3],[9,2,9,3],[58,6,59,8],[58,9,59,9],[60,6,61,8],[60,9,61,9],[62,6,63,8],[62,9,63,9]]}
["Na ovom radnom listu stvorite osobni mjesečni proračun. Upute za korištenje ovog radnog lista nalaze se u ćelijama u ovom stupcu. Pomoću tipke sa strelicom prema dolje počnite s radom."]
["U ćeliji zdesna nalazi se naslov ovog radnog lista. Sljedeća je uputa u ćeliji A4.","OSOBNI MJESEČNI PRORAČUN"]
[]
["Oznaka predviđenog mjesečnog prihoda nalazi se u ćeliji zdesna. Prihod 1 unesite u ćeliju E4, a ostale prihode u ćeliju E5 da biste tako izračunali ukupni mjesečni prihod u ćeliji E6. Sljedeća je uputa u ćeliji A6.","PREDVIĐENI MJESEČNI PRORAČUN","Prihod 1",null,{"v":4300,"d":"4,300.00 kn"},null,"Predviđeni saldo \n(Predviđeni prihodi minus troškovi)",null,null,{"$f":"E6-J59","v":{"v":3405,"d":"3,405.00 kn"}}]
[null,null,"Dodatni prihodi",null,{"v":300,"d":"300.00 kn"}]
["Predviđeni se saldo automatski izračunava u ćeliji J4, stvarni saldo u ćeliji J6, a razlika u ćeliji J8. Sljedeća je uputa u ćeliji A8.",null,"Ukupni mjesečni prihodi",null,{"$f":"SUM(E4:E5)","v":{"v":4600,"d":"4,600.00 kn"}},null,"STVARNI SALDO \n(Stvarni prihodi minus troškovi)",null,null,{"$f":"E10-J61","v":{"v":3064,"d":"3,064.00 kn"}}]
[]
["Oznaka stvarnog mjesečnog prihoda nalazi se u ćeliji zdesna. Prihod 1 unesite u ćeliju E8, a ostale prihode u ćeliju E9 da biste tako izračunali ukupni mjesečni prihod u ćeliji E10. Sljedeća je uputa u ćeliji A12.","STVARNI MJESEČNI PRORAČUN","Prihod 1",null,{"v":4000,"d":"4,000.00 kn"},null,"RAZLIKA \n(Stvarno minus predviđeno)",null,null,{"$f":"J6-J4","v":{"v":-341,"d":"-341.00 kn"}}]
[null,null,"Dodatni prihodi",null,{"v":300,"d":"300.00 kn"}]
[null,null,"Ukupni mjesečni prihodi",null,{"$f":"SUM(E8:E9)","v":{"v":4300,"d":"4,300.00 kn"}}]
[]
["Unesite pojedinosti u tablicu Stanovanje koja započinje ćelijom zdesna te u tablicu Zabava koja započinje ćelijom G12. Sljedeća je uputa u ćeliji A25.","STANOVANJE","Predviđeni trošak","Stvarni trošak","Razlika",null,"ZABAVA","Predviđeni trošak","Stvarni trošak","Razlika"]
[null,"Hipoteka ili najamnina",{"v":1000,"d":"1,000.00 kn"},{"v":1000,"d":"1,000.00 kn"},{"$f":"Stanovanje[[#This Row],[Predviđeni trošak]]-Stanovanje[[#This Row],[Stvarni trošak]]","v":{"v":0,"d":"0.00 kn"}},null,"Izlazak",null,null,{"$f":"Zabava[[#This Row],[Predviđeni trošak]]-Zabava[[#This Row],[Stvarni trošak]]","v":{"v":0,"d":"0.00 kn"}}]
[null,"Telefon",{"v":54,"d":"54.00 kn"},{"v":100,"d":"100.00 kn"},{"$f":"Stanovanje[[#This Row],[Predviđeni trošak]]-Stanovanje[[#This Row],[Stvarni trošak]]","v":{"v":-46,"d":"-46.00 kn"}},null,"Glazbene platforme",null,null,{"$f":"Zabava[[#This Row],[Predviđeni trošak]]-Zabava[[#This Row],[Stvarni trošak]]","v":{"v":0,"d":"0.00 kn"}}]
[null,"Struja",{"v":44,"d":"44.00 kn"},{"v":56,"d":"56.00 kn"},{"$f":"Stanovanje[[#This Row],[Predviđeni trošak]]-Stanovanje[[#This Row],[Stvarni trošak]]","v":{"v":-12,"d":"-12.00 kn"}},null,"Filmovi",null,null,{"$f":"Zabava[[#This Row],[Predviđeni trošak]]-Zabava[[#This Row],[Stvarni trošak]]","v":{"v":0,"d":"0.00 kn"}}]
[null,"Plin",{"v":22,"d":"22.00 kn"},{"v":28,"d":"28.00 kn"},{"$f":"Stanovanje[[#This Row],[Predviđeni trošak]]-Stanovanje[[#This Row],[Stvarni trošak]]","v":{"v":-6,"d":"-6.00 kn"}},null,"Koncerti",null,null,{"$f":"Zabava[[#This Row],[Predviđeni trošak]]-Zabava[[#This Row],[Stvarni trošak]]","v":{"v":0,"d":"0.00 kn"}}]
[null,"Voda i komunalna naknada",{"v":8,"d":"8.00 kn"},{"v":8,"d":"8.00 kn"},{"$f":"Stanovanje[[#This Row],[Predviđeni trošak]]-Stanovanje[[#This Row],[Stvarni trošak]]","v":{"v":0,"d":"0.00 kn"}},null,"Sportska događanja",null,null,{"$f":"Zabava[[#This Row],[Predviđeni trošak]]-Zabava[[#This Row],[Stvarni trošak]]","v":{"v":0,"d":"0.00 kn"}}]
[null,"Kabelska TV",{"v":34,"d":"34.00 kn"},{"v":34,"d":"34.00 kn"},{"$f":"Stanovanje[[#This Row],[Predviđeni trošak]]-Stanovanje[[#This Row],[Stvarni trošak]]","v":{"v":0,"d":"0.00 kn"}},null,"Kazalište",null,null,{"$f":"Zabava[[#This Row],[Predviđeni trošak]]-Zabava[[#This Row],[Stvarni trošak]]","v":{"v":0,"d":"0.00 kn"}}]
[null,"Odvoz smeća",{"v":10,"d":"10.00 kn"},{"v":10,"d":"10.00 kn"},{"$f":"Stanovanje[[#This Row],[Predviđeni trošak]]-Stanovanje[[#This Row],[Stvarni trošak]]","v":{"v":0,"d":"0.00 kn"}},null,"Drugo",null,null,{"$f":"Zabava[[#This Row],[Predviđeni trošak]]-Zabava[[#This Row],[Stvarni trošak]]","v":{"v":0,"d":"0.00 kn"}}]
[null,"Održavanja i popravci",{"v":23,"d":"23.00 kn"},{"v":0,"d":"0.00 kn"},{"$f":"Stanovanje[[#This Row],[Predviđeni trošak]]-Stanovanje[[#This Row],[Stvarni trošak]]","v":{"v":23,"d":"23.00 kn"}},null,"Drugo",null,null,{"$f":"Zabava[[#This Row],[Predviđeni trošak]]-Zabava[[#This Row],[Stvarni trošak]]","v":{"v":0,"d":"0.00 kn"}}]
[null,"Potrepštine",{"v":0,"d":"0.00 kn"},{"v":0,"d":"0.00 kn"},{"$f":"Stanovanje[[#This Row],[Predviđeni trošak]]-Stanovanje[[#This Row],[Stvarni trošak]]","v":{"v":0,"d":"0.00 kn"}},null,"Drugo",null,null,{"$f":"Zabava[[#This Row],[Predviđeni trošak]]-Zabava[[#This Row],[Stvarni trošak]]","v":{"v":0,"d":"0.00 kn"}}]
[null,"Drugo",{"v":0,"d":"0.00 kn"},{"v":0,"d":"0.00 kn"},{"$f":"Stanovanje[[#This Row],[Predviđeni trošak]]-Stanovanje[[#This Row],[Stvarni trošak]]","v":{"v":0,"d":"0.00 kn"}},null,"Podzbroj",null,null,{"$f":"SUBTOTAL(109,Zabava[Razlika])","v":{"v":0,"d":"0.00 kn"}}]
[null,"Podzbroj",null,null,{"$f":"SUBTOTAL(109,Stanovanje[Razlika])","v":{"v":-41,"d":"-41.00 kn"}}]
[{"$nulls":6},"KREDITI","Predviđeni trošak","Stvarni trošak","Razlika"]
["Unesite pojedinosti u tablicu Prijevoz koja započinje ćelijom zdesna te u tablicu Krediti koja započinje ćelijom G24. Sljedeća je uputa u ćeliji A35.","PRIJEVOZ","Predviđeni trošak","Stvarni trošak","Razlika",null,"Osobne potrebe",null,null,{"$f":"Krediti[[#This Row],[Predviđeni trošak]]-Krediti[[#This Row],[Stvarni trošak]]","v":{"v":0,"d":"0.00 kn"}}]
[null,"Troškovi vozila",null,null,{"$f":"Prijevoz[[#This Row],[Predviđeni trošak]]-Prijevoz[[#This Row],[Stvarni trošak]]","v":{"v":0,"d":"0.00 kn"}},null,"Studentski kredit",null,null,{"$f":"Krediti[[#This Row],[Predviđeni trošak]]-Krediti[[#This Row],[Stvarni trošak]]","v":{"v":0,"d":"0.00 kn"}}]
[null,"Autobus/taksi",null,null,{"$f":"Prijevoz[[#This Row],[Predviđeni trošak]]-Prijevoz[[#This Row],[Stvarni trošak]]","v":{"v":0,"d":"0.00 kn"}},null,"Kreditna kartica",null,null,{"$f":"Krediti[[#This Row],[Predviđeni trošak]]-Krediti[[#This Row],[Stvarni trošak]]","v":{"v":0,"d":"0.00 kn"}}]
[null,"Osiguranje",null,null,{"$f":"Prijevoz[[#This Row],[Predviđeni trošak]]-Prijevoz[[#This Row],[Stvarni trošak]]","v":{"v":0,"d":"0.00 kn"}},null,"Kreditna kartica",null,null,{"$f":"Krediti[[#This Row],[Predviđeni trošak]]-Krediti[[#This Row],[Stvarni trošak]]","v":{"v":0,"d":"0.00 kn"}}]
[null,"Registracija",null,null,{"$f":"Prijevoz[[#This Row],[Predviđeni trošak]]-Prijevoz[[#This Row],[Stvarni trošak]]","v":{"v":0,"d":"0.00 kn"}},null,"Kreditna kartica",null,null,{"$f":"Krediti[[#This Row],[Predviđeni trošak]]-Krediti[[#This Row],[Stvarni trošak]]","v":{"v":0,"d":"0.00 kn"}}]
[null,"Gorivo",null,null,{"$f":"Prijevoz[[#This Row],[Predviđeni trošak]]-Prijevoz[[#This Row],[Stvarni trošak]]","v":{"v":0,"d":"0.00 kn"}},null,"Drugo",null,null,{"$f":"Krediti[[#This Row],[Predviđeni trošak]]-Krediti[[#This Row],[Stvarni trošak]]","v":{"v":0,"d":"0.00 kn"}}]
[null,"Održavanje",null,null,{"$f":"Prijevoz[[#This Row],[Predviđeni trošak]]-Prijevoz[[#This Row],[Stvarni trošak]]","v":{"v":0,"d":"0.00 kn"}},null,"Podzbroj",null,null,{"$f":"SUBTOTAL(109,Krediti[Razlika])","v":{"v":0,"d":"0.00 kn"}}]
[null,"Drugo",null,null,{"$f":"Prijevoz[[#This Row],[Predviđeni trošak]]-Prijevoz[[#This Row],[Stvarni trošak]]","v":{"v":0,"d":"0.00 kn"}}]
[null,"Podzbroj",null,null,{"$f":"SUBTOTAL(109,Prijevoz[Razlika])","v":{"v":0,"d":"0.00 kn"}},null,"POREZI","Predviđeni trošak","Stvarni trošak","Razlika"]
[{"$nulls":6},"Savezni",null,null,{"$f":"Porezi[[#This Row],[Predviđeni trošak]]-Porezi[[#This Row],[Stvarni trošak]]","v":{"v":0,"d":"0.00 kn"}}]
["Unesite pojedinosti u tablicu Osiguranje koja započinje ćelijom zdesna te u tablicu Porezi koja započinje ćelijom G33. Sljedeća je uputa u ćeliji A42.","OSIGURANJE","Predviđeni trošak","Stvarni trošak","Razlika",null,"Državni",null,null,{"$f":"Porezi[[#This Row],[Predviđeni trošak]]-Porezi[[#This Row],[Stvarni trošak]]","v":{"v":0,"d":"0.00 kn"}}]
[null,"Kuća",null,null,{"$f":"Osiguranje[[#This Row],[Predviđeni trošak]]-Osiguranje[[#This Row],[Stvarni trošak]]","v":{"v":0,"d":"0.00 kn"}},null,"Lokalni",null,null,{"$f":"Porezi[[#This Row],[Predviđeni trošak]]-Porezi[[#This Row],[Stvarni trošak]]","v":{"v":0,"d":"0.00 kn"}}]
[null,"Zdravstveno osiguranje",null,null,{"$f":"Osiguranje[[#This Row],[Predviđeni trošak]]-Osiguranje[[#This Row],[Stvarni trošak]]","v":{"v":0,"d":"0.00 kn"}},null,"Drugo",null,null,{"$f":"Porezi[[#This Row],[Predviđeni trošak]]-Porezi[[#This Row],[Stvarni trošak]]","v":{"v":0,"d":"0.00 kn"}}]
[null,"Životno osiguranje",null,null,{"$f":"Osiguranje[[#This Row],[Predviđeni trošak]]-Osiguranje[[#This Row],[Stvarni trošak]]","v":{"v":0,"d":"0.00 kn"}},null,"Podzbroj",null,null,{"$f":"SUBTOTAL(109,Porezi[Razlika])","v":{"v":0,"d":"0.00 kn"}}]
[null,"Drugo",null,null,{"$f":"Osiguranje[[#This Row],[Predviđeni trošak]]-Osiguranje[[#This Row],[Stvarni trošak]]","v":{"v":0,"d":"0.00 kn"}}]
[null,"Podzbroj",null,null,{"$f":"SUBTOTAL(109,Osiguranje[Razlika])","v":{"v":0,"d":"0.00 kn"}},null,"ŠTEDNJA ILI ULAGANJA","Predviđeni trošak","Stvarni trošak","Razlika"]
[{"$nulls":6},"Mirovinska štednja",null,null,{"$f":"Štednja[[#This Row],[Predviđeni trošak]]-Štednja[[#This Row],[Stvarni trošak]]","v":{"v":0,"d":"0.00 kn"}}]
["Unesite pojedinosti u tablicu Hrana koja započinje ćelijom zdesna te u tablicu Štednja koja započinje ćelijom G40. Sljedeća je uputa u ćeliji A48.","HRANA","Predviđeni trošak","Stvarni trošak","Razlika",null,"Investicijski račun",null,null,{"$f":"Štednja[[#This Row],[Predviđeni trošak]]-Štednja[[#This Row],[Stvarni trošak]]","v":{"v":0,"d":"0.00 kn"}}]
[null,"Namirnice",null,null,{"$f":"Hrana[[#This Row],[Predviđeni trošak]]-Hrana[[#This Row],[Stvarni trošak]]","v":{"v":0,"d":"0.00 kn"}},null,"Drugo",null,null,{"$f":"Štednja[[#This Row],[Predviđeni trošak]]-Štednja[[#This Row],[Stvarni trošak]]","v":{"v":0,"d":"0.00 kn"}}]
[null,"Restorani",null,null,{"$f":"Hrana[[#This Row],[Predviđeni trošak]]-Hrana[[#This Row],[Stvarni trošak]]","v":{"v":0,"d":"0.00 kn"}},null,"Podzbroj",null,null,{"$f":"SUBTOTAL(109,Štednja[Razlika])","v":{"v":0,"d":"0.00 kn"}}]
[null,"Drugo",null,null,{"$f":"Hrana[[#This Row],[Predviđeni trošak]]-Hrana[[#This Row],[Stvarni trošak]]","v":{"v":0,"d":"0.00 kn"}}]
[null,"Podzbroj",null,null,{"$f":"SUBTOTAL(109,Hrana[Razlika])","v":{"v":0,"d":"0.00 kn"}},null,"DAROVI I DONACIJE","Predviđeni trošak","Stvarni trošak","Razlika"]
[{"$nulls":6},"Dobrotvorna udruga 1",null,null,{"$f":"Darovi[[#This Row],[Predviđeni trošak]]-Darovi[[#This Row],[Stvarni trošak]]","v":{"v":0,"d":"0.00 kn"}}]
["Unesite pojedinosti u tablicu Kućni ljubimci koja započinje ćelijom zdesna te u tablicu Darovi koja započinje ćelijom G46. Sljedeća je uputa u ćeliji A56.","KUĆNI LJUBIMCI","Predviđeni trošak","Stvarni trošak","Razlika",null,"Dobrotvorna udruga 2",null,null,{"$f":"Darovi[[#This Row],[Predviđeni trošak]]-Darovi[[#This Row],[Stvarni trošak]]","v":{"v":0,"d":"0.00 kn"}}]
[null,"Hrana",null,null,{"$f":"Kućni_ljubimci[[#This Row],[Predviđeni trošak]]-Kućni_ljubimci[[#This Row],[Stvarni trošak]]","v":{"v":0,"d":"0.00 kn"}},null,"Dobrotvorna udruga 3",null,null,{"$f":"Darovi[[#This Row],[Predviđeni trošak]]-Darovi[[#This Row],[Stvarni trošak]]","v":{"v":0,"d":"0.00 kn"}}]
[null,"Liječnički troškovi",null,null,{"$f":"Kućni_ljubimci[[#This Row],[Predviđeni trošak]]-Kućni_ljubimci[[#This Row],[Stvarni trošak]]","v":{"v":0,"d":"0.00 kn"}},null,"Podzbroj",null,null,{"$f":"SUBTOTAL(109,Darovi[Razlika])","v":{"v":0,"d":"0.00 kn"}}]
[null,"Njega ljubimaca",null,null,{"$f":"Kućni_ljubimci[[#This Row],[Predviđeni trošak]]-Kućni_ljubimci[[#This Row],[Stvarni trošak]]","v":{"v":0,"d":"0.00 kn"}}]
[null,"Igračke",null,null,{"$f":"Kućni_ljubimci[[#This Row],[Predviđeni trošak]]-Kućni_ljubimci[[#This Row],[Stvarni trošak]]","v":{"v":0,"d":"0.00 kn"}},null,"PRAVNI TROŠKOVI","Predviđeni trošak","Stvarni trošak","Razlika"]
[null,"Drugo",null,null,{"$f":"Kućni_ljubimci[[#This Row],[Predviđeni trošak]]-Kućni_ljubimci[[#This Row],[Stvarni trošak]]","v":{"v":0,"d":"0.00 kn"}},null,"Odvjetnik",null,null,{"$f":"Pravni_troškovi[[#This Row],[Predviđeni trošak]]-Pravni_troškovi[[#This Row],[Stvarni trošak]]","v":{"v":0,"d":"0.00 kn"}}]
[null,"Podzbroj",null,null,{"$f":"SUBTOTAL(109,Kućni_ljubimci[Razlika])","v":{"v":0,"d":"0.00 kn"}},null,"Alimentacija",null,null,{"$f":"Pravni_troškovi[[#This Row],[Predviđeni trošak]]-Pravni_troškovi[[#This Row],[Stvarni trošak]]","v":{"v":0,"d":"0.00 kn"}}]
[{"$nulls":6},"Otplate zaloga ili ovrha",null,null,{"$f":"Pravni_troškovi[[#This Row],[Predviđeni trošak]]-Pravni_troškovi[[#This Row],[Stvarni trošak]]","v":{"v":0,"d":"0.00 kn"}}]
["Unesite pojedinosti u tablicu Osobna njega koja započinje ćelijom zdesna te u tablicu Pravni troškovi koja započinje ćelijom G52. Sljedeća je uputa u ćeliji A59.","OSOBNA NJEGA","Predviđeni trošak","Stvarni trošak","Razlika",null,"Drugo",null,null,{"$f":"Pravni_troškovi[[#This Row],[Predviđeni trošak]]-Pravni_troškovi[[#This Row],[Stvarni trošak]]","v":{"v":0,"d":"0.00 kn"}}]
[null,"Liječnički troškovi",null,null,{"$f":"Osobna_njega[[#This Row],[Predviđeni trošak]]-Osobna_njega[[#This Row],[Stvarni trošak]]","v":{"v":0,"d":"0.00 kn"}},null,"Podzbroj",null,null,{"$f":"SUBTOTAL(109,Pravni_troškovi[Razlika])","v":{"v":0,"d":"0.00 kn"}}]
[null,"Frizura/manikura",null,null,{"$f":"Osobna_njega[[#This Row],[Predviđeni trošak]]-Osobna_njega[[#This Row],[Stvarni trošak]]","v":{"v":0,"d":"0.00 kn"}}]
["Ukupni se predviđeni troškovi automatski izračunavaju u ćeliji J59, ukupni stvarni troškovi u ćeliji J61, a ukupna razlika u ćeliji J63.","Odjeća",null,null,{"$f":"Osobna_njega[[#This Row],[Predviđeni trošak]]-Osobna_njega[[#This Row],[Stvarni trošak]]","v":{"v":0,"d":"0.00 kn"}},null,"UKUPNI PREDVIĐENI TROŠKOVI",null,null,{"$f":"SUBTOTAL(109,Stanovanje[Predviđeni trošak],Prijevoz[Predviđeni trošak],Osiguranje[Predviđeni trošak],Hrana[Predviđeni trošak],Kućni_ljubimci[Predviđeni trošak],Osobna_njega[Predviđeni trošak],Zabava[Predviđeni trošak],Krediti[Predviđeni trošak],Porezi[Predviđeni trošak],Štednja[Predviđeni trošak],Darovi[Predviđeni trošak],Pravni_troškovi[Predviđeni trošak])","v":{"v":1195,"d":"1,195.00 kn"}}]
[null,"Čišćenje odjeće",null,null,{"$f":"Osobna_njega[[#This Row],[Predviđeni trošak]]-Osobna_njega[[#This Row],[Stvarni trošak]]","v":{"v":0,"d":"0.00 kn"}}]
[null,"Teretana",null,null,{"$f":"Osobna_njega[[#This Row],[Predviđeni trošak]]-Osobna_njega[[#This Row],[Stvarni trošak]]","v":{"v":0,"d":"0.00 kn"}},null,"UKUPNI STVARNI TROŠKOVI",null,null,{"$f":"SUBTOTAL(109,Stanovanje[Stvarni trošak],Prijevoz[Stvarni trošak],Osiguranje[Stvarni trošak],Hrana[Stvarni trošak],Kućni_ljubimci[Stvarni trošak],Osobna_njega[Stvarni trošak],Zabava[Stvarni trošak],Krediti[Stvarni trošak],Porezi[Stvarni trošak],Štednja[Stvarni trošak],Darovi[Stvarni trošak],Pravni_troškovi[Stvarni trošak])","v":{"v":1236,"d":"1,236.00 kn"}}]
[null,"Članarine ili naknade",null,null,{"$f":"Osobna_njega[[#This Row],[Predviđeni trošak]]-Osobna_njega[[#This Row],[Stvarni trošak]]","v":{"v":0,"d":"0.00 kn"}}]
[null,"Drugo",null,null,{"$f":"Osobna_njega[[#This Row],[Predviđeni trošak]]-Osobna_njega[[#This Row],[Stvarni trošak]]","v":{"v":0,"d":"0.00 kn"}},null,"UKUPNA RAZLIKA",null,null,{"$f":"J59-J61","v":{"v":-41,"d":"-41.00 kn"}}]
[null,"Podzbroj",null,null,{"$f":"SUBTOTAL(109,Osobna_njega[Razlika])","v":{"v":0,"d":"0.00 kn"}}]